Cogmind - Beta 13 @@@ ROGUE MODE // 2024.04.20 @ 19:39:48 Player: Sand Result: Destroyed by G-34 Mercenary with Small Laser Performance ------------- Evolutions (1) 500 Regions Visited (4) 800 Robots Destroyed (28) 140 Value Destroyed (753) 753 Prototype IDs (2) 40 Alien Tech Used (0) 0 Bonus (353) 353 TOTAL SCORE: 2586 Bonus ------- Follower Combat Kills 153 Entered Garrisons 200 Cogmind --------- Core Integrity 0/400 Matter 294/300 Energy 99/100 System Corruption 5% Temperature Cool (6) Movement Core (50) Location -9/Garrison Parts ------- > --- POWER (1) -------- (None) > --- PROPULSION (3) --- (None) > --- UTILITY (3) ------ (None) > --- WEAPON (2) ------- (None) > --- INVENTORY (5) ---- Light Ion Engine Weapon Shielding Peak State ------------ > --- POWER ------------ Light Nuclear Core > --- PROPULSION ------- VTOL Module VTOL Module VTOL Module > --- UTILITY ---------- Sensor Array Signal Interpreter ECM Suite > --- WEAPON ----------- Light Cannon Light Cannon > --- INVENTORY -------- Weapon Shielding [Rating: 14] Favorites ----------- Power Light Ion Engine Engine Light Ion Engine Power Core Light Nuclear Core Propulsion VTOL Module Wheel Compact Wheel Flight Unit VTOL Module Utility Sensor Array Device Sensor Array Storage Small Storage Unit Processor Signal Interpreter Protection Weapon Shielding Weapon Light Cannon Ballistic Gun Assault Rifle Ballistic Cannon Light Cannon Launcher EMP Blaster Build | -11 -10 -9 -9 -9 ------- Run | Yrd Mat Mat Sto Gar Slots Evolved 2 | . . 2 . . Power . | . . . . . Propulsion 1 | . . 1 . . Utility 1 | . . 1 . . Weapon . | . . . . . Parts Attached 38 | 6 16 4 12 . Power 5 | 1 1 . 3 . Engine 3 | 1 1 . 1 . Core 2 | . . . 2 . Reactor . | . . . . . Propulsion 7 | 2 2 1 2 . Treads . | . . . . . Leg . | . . . . . Wheel 2 | 2 . . . . Hover . | . . . . . Flight 5 | . 2 1 2 . Utility 12 | 1 8 1 2 . Device 6 | . 3 1 2 . Storage 1 | 1 . . . . Processor 2 | . 2 . . . Hackware . | . . . . . Protection 3 | . 3 . . . Artifact . | . . . . . Weapon 14 | 2 5 2 5 . Energy Gun . | . . . . . Energy Cannon . | . . . . . Ballistic Gun 2 | 2 . . . . Ballistic Cannon 10 | . 5 1 4 . Launcher 2 | . . 1 1 . Special Weapon . | . . . . . Impact Weapon . | . . . . . Slashing Weapon . | . . . . . Piercing Weapon . | . . . . . Special Melee Weapon . | . . . . . Unidentified Prototypes . | . . . . . Parts Lost 15 | . 1 3 11 . Power 2 | . . 1 1 . Propulsion 6 | . 1 1 4 . Utility 3 | . . . 3 . Weapon 4 | . . 1 3 . Highest Loss Streak 11 | . 1 2 11 . To Critical Strikes . | . . . . . Average Slot Usage (%) 80 | . 88 91 59 . Engine 10 | . 13 7 . . Wheel 6 | . 10 . . . Flight 18 | . 15 32 21 . Device 7 | . 3 18 15 . Storage 4 | . 6 . . . Processor 6 | . 5 11 10 . Protection 3 | . 4 . . . Ballistic Cannon 22 | . 27 21 8 . Naked Turns 111 | . . . 15 96 Heaviest Build 15 | 11 15 12 14 . Greatest Support 32 | 32 32 12 12 3 Greatest Overweight (x) 4 | 1 4 1 2 . Average Overweight (x) . | . . . . . Largest Inventory Capacity 8 | 8 8 5 5 5 Average Capacity 5 | 7 6 5 5 5 Most Carried 5 | . 5 5 4 2 Average Carried 2 | . 2 3 3 2 Final Capacity 8 | 8 5 5 5 5 Final Carried 5 | . 5 3 2 2 Class Distribution -------------------- 73% | Mutant 20% | Sprinter 6% | Commander-Mutant Dominant Class ---------------- Mutant | -10/Materials Sprinter | -9/Materials Commander-Mutant | -9/Storage Mutant | -9/Garrison Resources | -11 -10 -9 -9 -9 ----------- Run | Yrd Mat Mat Sto Gar Matter Collected 1019 | 176 490 48 305 . Remotely . | . . . . . Salvage Created 607 | . 405 113 89 . Parts 50 | . 33 12 5 . Haulers Intercepted . | . . . . . Recyclers Shooed 1 | . 1 . . . Parts Field Recycled . | . . . . . Retrieved Matter . | . . . . . Parts Self-Destructed . | . . . . . Prevented . | . . . . . Kills | -11 -10 -9 -9 -9 ------- Run | Yrd Mat Mat Sto Gar Combat Hostiles Destroyed 20 | . 14 6 . . Cannons 15 | . 13 2 . . AOE 5 | . 1 4 . . Classes Destroyed 5 | . 4 . 1 . Worker 3 | . 2 1 . . Recycler 1 | . . . 1 . Watcher 4 | . 3 . 1 . Swarmer 4 | . 2 2 . . Grunt 16 | . 12 4 . . Best Kill Streak 5 | . 4 5 1 . Combat Bots Only 4 | . 4 4 . . Max Kills in Single Turn 3 | . 3 2 1 . Gunslinging . | . . . . . Exploded 2 | . 1 2 . . Melee . | . . . . . Uniques/NPCs Destroyed . | . . . . . Combat | -11 -10 -9 -9 -9 -------- Run | Yrd Mat Mat Sto Gar Hostile Shots Fired 176 | . 53 46 75 2 Missed 64 | . 22 19 22 1 Damage Taken 1503 | . 425 293 775 10 Core 629 | . 225 10 384 10 Absorbed by Shields . | . . . . . Redirected to Shielding 21 | . 21 . . . Regen/Repaired (Parts) 101 | . 101 . . . Core Remaining (%) 55 | 100 10 . . . Volleys Fired 68 | . 44 11 13 . Largest 2 | . 2 2 2 . Hottest 70 | . 70 70 70 . Shots Fired 125 | . 88 21 16 . Gun . | . . . . . Cannon 119 | . 88 19 12 . Launcher 6 | . . 2 4 . Special . | . . . . . Kinetic 119 | . 88 19 12 . Thermal . | . . . . . Explosive 2 | . . 2 . . Electromagnetic 4 | . . . 4 . Robot Hit Streak 5 | . 5 4 5 . Robot Miss Streak 4 | . 4 4 1 . Penetration Max . | . . . . . Secondary Targets . | . . . . . Shots Hit Robots 67 | . 45 12 10 . Core Hits 31 | . 21 7 3 . Critical Kills . | . . . . . Critical Parts Destroyed . | . . . . . Critical Strikes 3 | . 3 . . . Blast 3 | . 3 . . . Melee Attacks . | . . . . . Impact . | . . . . . Slashing . | . . . . . Piercing . | . . . . . Sneak Attacks . | . . . . . Combat Hostiles . | . . . . . Follow-up Attacks . | . . . . . Damage Inflicted 2167 | . 1333 625 209 . Guns . | . . . . . Cannons 1129 | . 796 210 123 . Explosions 1010 | . 537 415 58 . Melee . | . . . . . Ramming 28 | . . . 28 . Kinetic 1129 | . 796 210 123 . Thermal 537 | . 537 . . . Explosive 415 | . . 415 . . Electromagnetic 58 | . . . 58 . Impact . | . . . . . Slashing . | . . . . . Piercing . | . . . . . Highest Corruption 5 | . . . 5 5 Average Corruption 5 | . . . 5 5 Corruption Purged . | . . . . . Corruption Blocked . | . . . . . Effects 2 | . . . . 2 Message Errors 1 | . . . . 1 Matter Fused 1 | . . . . 1 Overload Shots . | . . . . . Overflow Damage 54 | . 45 9 . . Projectiles 20 | . 20 . . . Explosions 34 | . 25 9 . . Melee . | . . . . . Knockbacks 20 | . 17 2 1 . Impact . | . . . . . Kinetic 17 | . 14 2 1 . Secondary 3 | . 3 . . . Self-Inflicted Damage 117 | . 95 8 14 . Shots 2 | . 1 1 . . Rammed 6 | . . . 6 . Targets Rammed 6 | . . . 6 . Kicked . | . . . . . Crushed . | . . . . . Highest Temperature 99 | . 99 71 61 . Average Temperature 30 | . 32 27 21 . Received Heat Transfer 525 | . 135 93 291 6 Siege Activations . | . . . . . Robots Corrupted . | . . . . . Combat Hostiles . | . . . . . Parts Fried . | . . . . . Impact Corruptions . | . . . . . Robots Melted . | . . . . . Combat Hostiles . | . . . . . Parts Melted . | . . . . . Heat Transferred 350 | . 350 . . . Parts Sabotaged . | . . . . . Parts Stolen . | . . . . . Parts Stripped . | . . . . . Power Chain Reactions 1 | . . . 1 . Alert | -11 -10 -9 -9 -9 ------- Run | Yrd Mat Mat Sto Gar Peak Influence 350 | . 333 301 350 232 Initial 188 | . . 40 122 188 Average 152 | . 149 106 236 201 Maximum Alert Level 1 | . 1 1 1 1 Low Security (%) 75 | 100 83 93 20 31 Level 1 24 | . 16 6 79 68 Level 2 . | . . . . . Level 3 . | . . . . . Level 4 . | . . . . . Level 5 . | . . . . . High Security . | . . . . . Max Security . | . . . . . Squads Dispatched 4 | . 3 . 1 . Investigation 1 | . 1 . . . Extermination . | . . . . . Reinforcement 2 | . 2 . . . Assault . | . . . . . Garrison 1 | . . . 1 . Intercept . | . . . . . Searches Triggered . | . . . . . Construction Impeded . | . . . . . Haulers Reinforced . | . . . . . Active Scanning Responses . | . . . . . Cargo Convoy Interrupts . | . . . . . Stealth | -11 -10 -9 -9 -9 --------- Run | Yrd Mat Mat Sto Gar Distress Signals 4 | . . . 4 . Communications Jammed . | . . . . . Distress Signals . | . . . . . Times Spotted 68 | . 27 22 15 4 Peak Tracking Total 11 | . 8 11 7 2 Tactical Retreats 9 | . 2 4 3 . Traps | -11 -10 -9 -9 -9 ------- Run | Yrd Mat Mat Sto Gar Traps Triggered 6 | . 4 . 1 1 Indirectly . | . . . . . Trap Hack Attempts . | . . . . . Triggered . | . . . . . Disarmed . | . . . . . Reprogrammed 10 | . 6 4 . . Reused 3 | . . 3 . . Traps Extracted . | . . . . . Installed . | . . . . . Triggered 3 | . . 3 . . Machines | -11 -10 -9 -9 -9 ---------- Run | Yrd Mat Mat Sto Gar Machines Disabled 7 | . 4 2 1 . Max in Single Turn 3 | . 3 1 1 . Machines Repaired . | . . . . . Machines Dismantled . | . . . . . Machines Sabotaged . | . . . . . Overloaded Fab Kills . | . . . . . Hacking | -11 -10 -9 -9 -9 --------- Run | Yrd Mat Mat Sto Gar Machines Accessed 13 | . 7 2 3 1 Terminals 10 | . 5 2 2 1 Fabricators . | . . . . . Repair Stations 1 | . 1 . . . Recycling Units 1 | . 1 . . . Scanalyzers . | . . . . . Garrison Access 1 | . . . 1 . Total Hacks 31 | . 18 7 5 1 Successful 21 | . 13 5 2 1 Failed 10 | . 5 2 3 . Catastrophic 4 | . 1 . 3 . Database Lockouts . | . . . . . Manual . | . . . . . Terminals 21 | . 10 7 3 1 Fabricators . | . . . . . Repair Stations 4 | . 4 . . . Recycling Units 4 | . 4 . . . Scanalyzers . | . . . . . Garrison Access 2 | . . . 2 . Terminal Hacks 13 | . 6 5 1 1 Record 1 | . . . 1 . Robot Analysis 1 | . 1 . . . Prototype ID Bank 1 | . 1 . . . Emergency Access Points 3 | . . 2 . 1 Locate Traps 1 | . 1 . . . Reprogram Traps 2 | . 1 1 . . Hauler Manifests 1 | . 1 . . . Zone Layout 3 | . 1 2 . . Fabricator Hacks . | . . . . . Repair Station Hacks 4 | . 4 . . . Scan Component 2 | . 2 . . . Repair 2 | . 2 . . . Recycling Unit Hacks 3 | . 3 . . . Process 1 | . 1 . . . Report Inventory 1 | . 1 . . . Retrieve Matter 1 | . 1 . . . Scanalyzer . | . . . . . Garrison Access Hacks 1 | . . . 1 . Unlock Access 1 | . . . 1 . Unauthorized Hacks . | . . . . . Terminals . | . . . . . Fabricators . | . . . . . Repair Stations . | . . . . . Recycling Units . | . . . . . Scanalyzers . | . . . . . Garrison Access . | . . . . . Data Cores Recovered . | . . . . . Used . | . . . . . Hacking Detections 10 | . 6 1 3 . Full Trace Events 2 | . 2 . . . Feedback Events . | . . . . . Feedback Blocked . | . . . . . Robot Schematics Acquired . | . . . . . Robots Built . | . . . . . Authchips . | . . . . . Time . | . . . . . Total Robot Build Rating . | . . . . . Part Schematics Acquired . | . . . . . Parts Built . | . . . . . Authchips . | . . . . . Time . | . . . . . Total Part Build Rating . | . . . . . Parts Repaired 2 | . 2 . . . Time 52 | . 52 . . . Parts Recycled . | . . . . . Recycled Matter 14 | . 14 . . . Retrieved Matter 14 | . 14 . . . Retrieved Components . | . . . . . Parts Scanalyzed . | . . . . . Part Schematics Acquired . | . . . . . Parts Damaged . | . . . . . Bothacking | -11 -10 -9 -9 -9 ------------ Run | Yrd Mat Mat Sto Gar Used RIF Installer . | . . . . . Robots Hacked . | . . . . . Non-combat . | . . . . . Combat . | . . . . . Robot Hacks Applied . | . . . . . Relay Couplers Released . | . . . . . Fabnet Peak Effective % . | . . . . . Robots Rewired . | . . . . . Allies Hacked . | . . . . . Hacks Repelled . | . . . . . Allies | -11 -10 -9 -9 -9 -------- Run | Yrd Mat Mat Sto Gar Total Allies 10 | . . . 10 . Largest Group 10 | . . . 10 . Highest-Rated Group 88 | . . . 88 . Highest-Rated Ally 16 | . . . 16 . Total Orders 1 | . . . 1 . GUARD 1 | . . . 1 . Ally Attacks 62 | . . . 62 . Total Damage 586 | . . . 586 . Kills 10 | . . . 10 . Allies Corrupted . | . . . . . Allies Melted . | . . . . . Intel | -11 -10 -9 -9 -9 ------- Run | Yrd Mat Mat Sto Gar Robot Analysis Total 1 | . 1 . . . Derelict Logs Recovered . | . . . . . Drone Launches . | . . . . . Drone Recoveries . | . . . . . Exploration | -11 -10 -9 -9 -9 ------------- Run | Yrd Mat Mat Sto Gar Turns Passed 2101 | 45 1358 332 270 96 Spaces Moved 2072 | 38 1057 526 316 135 Core 194 | 10 2 . 47 135 Treads . | . . . . . Legs . | . . . . . Wheels 516 | 28 488 . . . Hover . | . . . . . Flight 1362 | . 567 526 269 . Fastest Speed 29 | 50 32 29 29 50 Average Speed 75 | 96 106 33 52 50 Slowest Speed 275 | 100 275 112 195 50 Overloaded Moves . | . . . . . Propulsion Burnouts . | . . . . . Robots Hopped 6 | . . 3 3 . Cave-ins Triggered . | . . . . . Exploration Rate (%) 41 | 3 98 25 55 28 Regions Visited 4 Branch Regions 1 Pre-discovered Areas . | . . . . . Known Exits Taken 3 | . 1 1 1 . Unknown Exits Taken 1 | 1 . . . . Scrap Searched . | . . . . . Spaces Dug . | . . . . . Terrain Destroyed 46 | . 26 20 . . Melee . | . . . . . Projectile . | . . . . . AOE 46 | . 26 20 . . Terrain Rammed . | . . . . . Walls Destroyed . | . . . . . Machines Disabled . | . . . . . Actions | -11 -10 -9 -9 -9 --------- Run | Yrd Mat Mat Sto Gar Total 2459 | 43 1196 656 401 163 Wait 249 | . 68 118 50 13 Move 2057 | 37 1056 519 310 135 Hop 5 | . . 3 2 . Pick Up 6 | . 4 . 2 . Fast Attach 24 | 6 15 . 3 . Attach 10 | . . 3 7 . Detach 7 | . 1 1 5 . Swap 4 | . 1 1 2 . Drop 8 | . 7 . 1 . Fire 68 | . 44 11 13 . Melee . | . . . . . Ram 6 | . . . 6 . Kick . | . . . . . Crush . | . . . . . Escape Stasis 15 | . . . . 15 Rewire . | . . . . . Trap . | . . . . . Miscellaneous . | . . . . . Route ------- -11/Scrapyard -10/Materials (discovered 5 exits: *Mat x3 / [*Min] / *Sub) -9/Materials -9/Storage -9/Garrison History --------- Turn | Location | Event 6 | -11/Scrapyard | Discovered new exit (range 15) 46 | -11/Scrapyard | Entered Materials 315 | -10/Materials | Build established: Mutant 587 | -10/Materials | Discovered new exit (range 16) 743 | -10/Materials | Core integrity fell below 50% 747 | -10/Materials | Core integrity fell below 20% 792 | -10/Materials | Discovered new exit (range 14) 832 | -10/Materials | Repaired Lgt. Cannon 859 | -10/Materials | Repaired Lgt. Cannon 949 | -10/Materials | Discovered new exit (range 7) 1014 | -10/Materials | Discovered new exit (range 15) 1266 | -10/Materials | Discovered new exit (range 11) 1370 | -10/Materials | Identified exit to Subcaves 1385 | -10/Materials | Identified exit to Materials 1404 | -10/Materials | Entered another Materials area 1404 | -9/Materials | Evolved 2 slots: Propulsion x1, Utility x1 1410 | -9/Materials | Discovered new exit (range 9) 1412 | -9/Materials | Identified exit to Storage 1736 | -9/Materials | Entered Storage 1769 | -9/Storage | Assisted by bots powering up and referring to "LRC-V3" 1895 | -9/Storage | Identified exit to Garrison 1921 | -9/Storage | Garrison activated, responded to threat 1971 | -9/Storage | Lost 3 allies 1974 | -9/Storage | Core integrity fell below 50% 1980 | -9/Storage | Core integrity fell below 20% 2006 | -9/Storage | Entered Garrison 2008 | -9/Garrison | Triggered checkpoint 2022 | -9/Garrison | Lost 11 parts (1p4n3u3w) 2102 | -9/Garrison | Triggered checkpoint 2102 | -9/Garrison | Triggered checkpoint 2102 | -9/Garrison | Destroyed by G-34 Mercenary with Small Laser Last Messages --------------- A bubble of rippling energy engulfs the area. Field strength at 94. Field strength at 88. Field strength at 82. Field strength at 76. Field strength at 70. Field strength at 64. Field strength at 58. Field strength at 52. Field strength at 46. Field strength at 40. Field strength at 34. Field strength at 28. Field strength at 22. Field strength at 16. Field strength at 10. Field strength at 4. Stasis field depleted. LXARGKRSQA,:PNER Map ----- +----------------------------------------------------+ | ???/???????????????????????????????# #??????????? | | ???????????????????????????????????# #??????????? | | ???????????????????????????????????# +??+???????? | | ???????????????????????????????????# #??????????? | | ???+???????????????????????###?????# #??????????? | | ????????????????????????####T####### #??????????? | | ????????????????????????# #??????????? | | ????????????????????????#^ #??????????? | | ??????+?????????????????#^^###+##### #???????+??? | | ????????????????????????# #???????# #??????????? | | ????????????????????????# #???????# #??????????? | | ????????????????????????# +???????+ ??????????? | | ????????????????????????# #???????# ##?????????? | | ?????????????# ????????# #???????# #??????????? | | +????????????# ##""""## ##??????# #??????????? | | ?????????????# ####+### #??????????? | | ?????????????+ #??????????? | | ?????????????# #??????????? | | ?????????????# ## ## ###########??????????? | | ?????????????# ## ## ###??????????????????? | | ???????????+?" #??????????????????? | | ?????????????" g#??????????????????? | | ?????????????" g#??????????????????? | | ???????????+?" +??????????????????? | | ?????????????# ## ## #????????????????????? | | ?????????????# ## ##@ #???????????????+????? | | ?????????????# #????????????????????? | | ?????????????+ +????????????????????? | | ?????????????# #????????????????????? | | ?????????????## ## ## #????????????+?????+?? | | ??????????????????# l l?# #????????????????????? | | ??????????????????####??# #????????????????????? | | ????????????????????????# #????????????????????? | | ???+??????????+?????????# #???????????????+????? | | ????????????????????????# ########?????????????? | | ????????????????????????# +?????????????? | | ????????????????????????# ###### #?????????????? | | ????????????????????????# #????# #?????????????? | | ?????????+??????????????# #????# #?????????????? | | ????????????????????????# ###### #??+??????????? | | ??+?????????????????????# ??????? | | ?????????+?????+????????# ??????? | | ????????????????????????# ??????? | | ????????????????????????########## ###+###???????? | | ?????????????????????????????????? #?????????????? | | ???+??+??????????????????????????? ??????????????? | | ?????????????????????????????????? ???+??????????? | | ?????????????????????????????????? ??????????????? | | ?????????????????????????????????? ??????????????? | | ?????????????????????????????????? ??????????????? | +----------------------------------------------------+ Best States ------------- Heat Dissipation 28 Energy Generation 14 Energy Capacity 160 Matter Stores 300 Matter Capacity 300 Sight Range 16 Robot Scan Range 14 Terrain Scan Density 85 ECM Strength 1 Utility Shielding 33 Weapon Shielding 33 Evasion (%) 64 Item Schematics ----------------- None Robot Schematics ------------------ None Fabricated ------------ Nothing Alien Tech Used ----------------- None Achievements -------------- The More The Merrier Challenges ------------ None Game ------ Seed GravityCommPlating Manual? 0 Play Time 00:44:26 Cumulative 6.8 hours Start 2024.04.20 @ 18:52:09 End 2024.04.20 @ 19:39:48 Sessions 1 Manual Loads 0 Difficulty Rogue Special Mode None Game No. 15 Rogue 15 Adventurer 0 Explorer 0 Win Type - Total 0 Types 0/0/0/0/0/0/0/0/0 Lore% 9 Gallery% 12 Achievement% 13 Wizard Run 0 Options --------- Layout 0 ASCII 0 Keyboard 0 Movement Mouse Keybinds 0 Fullscreen 1 Font 18/SmallcapsGlow Map View 76x50 Zoom Use 0% Tactical HUD 0 Map Filters NONE Filters NONE Steam 1 RUN: eeb06354-0b8a-4bec-9a73-03f15ef0172e